Workbook

Sheet 1.1 INDEX
A1: ='1.2 Expense Allocation'!B1 -> Dammeron Valley Water Works, LLC | D1: Exhibit 1.1
A2: ='1.2 Expense Allocation'!B2 -> General Rate Case Increase | D2: ='1.2 Expense Allocation'!M2 -> Docket No. 15-2025-01
A3: Index
A5: Exhibit No. | B5: Tab Label | C5: Title | D5: Description | E5: Page No.
A6: 1.1 | B6: INDEX | C6: Index | E6: 1
A7: 1.2a | B7: Rates | C7: ='1.2a Rates'!B3 -> Rate Schedule | D7: Shows the rate calculations and corresponding rate schedules.
A8: 1.2a | B8: Notes | C8: Rate Schedule (Notes) | D8: Notes and comments regarding Exhibit 1.2a.
A9: 1.2 | B9: Expense Allocation | C9: ='1.2 Expense Allocation'!B3 -> Allocation of Expenses | D9: Categorizes expenses as either Fixed or Variable expenses. | E9: 2
A10: 1.2 | B10: Notes | C10: ='1.2 Notes'!B3 -> Expense Allocation (Notes) | D10: Notes and comments regarding Exhibit 1.2 | E10: 4
A11: 1.3 | B11: Adj. Expense | C11: ='1.3 Adj. Expenses'!B3 -> Adjustments to Expenses | D11: Shows any adjustments to the expense amounts submitted by the water company. | E11: 5
A12: 1.3 | B12: Notes | C12: ='1.3 Notes'!$B$3 -> Adjustments to Expenses (Notes) | D12: Notes and comments regarding Exhibit 1.3 | E12: 6
A13: 1.3a | B13: Requested Expenses | C13: ='1.3a Reqested Expenses'!B3 -> Requested Expenses Submitted by Dammeron Water | D13: This sheet shows the expenses submitted by Dammeron Water in its Rate Case Application.
A14: 1.4 | B14: Rev & Exp | C14: ='1.4 Rev & Exp'!B3 -> Summary of Revenues and Expenses (Revenue Requirement) | D14: Summarizes the necessary expenses and shows the revenues required to fund these expenses. | E14: 7
A15: 1.5 | B15: Reserve | C15: ='1.5 Reserve'!B3 -> Capital Reserves | D15: Sets the minimum Capital Reserves funding requirements. | E15: 8
A16: 1.6 | B16: Deprec | C16: ='1.6 Deprec'!B3 -> Depreciation Expense & Accumulated Depreciation Reconciliation | D16: Lists the Company's assets and calculates the Depreciation Expense and Accumulated Depreciation | E16: 9
A17: 1.6 | B17: Notes | C17: ='1.6 Deprec Notes'!B3 -> Depreciation Expense & Accumulated Depreciation Reconciliation (Notes) | D17: Notes and comments regarding Exhibit 1.6
A18: 1.7 | B18: Rate Base | C18: ='1.7 Rate Base'!B3 -> Rate Base | D18: Rate base is the value of property, or infrastructure, on which a public utility is permitted to earn a specified rate of return. | E18: 11
A19: 1.8 | B19: Ret on Inv | C19: ='1.8 Ret on Inv'!B3 -> Return on Investment | D19: Lists the company's return on its investment is has an opportunity to earn. | E19: 12

Sheet 1.2a Rates
B1: ='1.2 Expense Allocation'!B1 -> Dammeron Valley Water Works, LLC | E1: Exhibit 1.2a
B2: ='1.2 Expense Allocation'!B2 -> General Rate Case Increase | E2: ='1.2 Expense Allocation'!M2 -> Docket No. 15-2025-01
B3: Rate Schedule
B5: Fixed Expenses
A6: 1 | B6: Fixed System Expenses | D6: ='1.2 Expense Allocation'!G63 -> 78443.2 | E6: [From Sch 1.2]
A7: 2 | B7: Total Number of Lots in System | D7: ='1.2 Expense Allocation'!G7 -> 473 | E7: [From Sch 1.2]
A8: 3 | B8: Annual Fixed Expenses per Lot | D8: =D6/D7 -> 165.8418605 | E8: (Line 1 ÷ Line 2)
A9: 4 | B9: Number months in year | D9: 12
A10: 5 | B10: Monthly Fixed System Rate (Paid by all qualified lots in Service Area) * | D10: =CEILING(D8/D9,0.1) -> 13.9 | E10: (Line 3 ÷ Line 4)
A11: 6
A12: 7 | B12: Fixed System Usage Expenses | D12: ='1.2 Expense Allocation'!J63 -> 110350.8 | E12: [From Sch 1.2]
A13: 8 | B13: Total Number of Connections | D13: ='1.2 Expense Allocation'!J7 -> 384 | E13: [From Sch 1.2]
A14: 9 | B14: Annual Fixed Usage Expenses | D14: =D12/D13 -> 287.371875 | E14: (Line 7 ÷ Line 8)
A15: 10 | B15: Number months in year | D15: 12
A16: 11 | B16: Monthly Fixed System Usage Rate (Paid in addition to Fixed System Rate by each CONNECTED Lot) * | D16: =CEILING(D14/D15,0.1) -> 24 | E16: (Line 9 ÷ Line 10)
A18: 12
A19: 13 | B19: Variable Expenses
A20: 14 | B20: Variable Water Consumption Expenses | D20: ='1.2 Expense Allocation'!M63 -> 44453 | E20: [From Sch 1.2]
A21: 15 | B21: Total Gallons Used | D21: ='1.2 Expense Allocation'!M7 -> 166136760 | E21: [From Sch 1.2]
A22: 16 | B22: Variable Water Consumption Rate (Paid for each 1,000 gallons water used) ** | D22: =CEILING(D20/D21*1000,0.05) -> 0.3 | E22: (Line 14 ÷ Line 15 X 1,000 Gallons)
A24: 17
A25: 18
A26: 19 | B26: Rate Schedule
A27: 20 | B27: Monthly Rates | E27: Monthly Water Usage Amounts
A28: 21
A29: 22 | B29: Standby Rate | C29: =D10 -> 13.9 | D29: [From Line 5]
A30: 23
A31: 24 | B31: Base Rate for Connected Customers | C31: =D10+D16 -> 37.9 | D31: (Lines 5 + 11) | E31: 0 | F31: 0
A32: 25 | B32: Tier 1 (Per 1,000 Gallons) | C32: =D22 -> 0.3 | D32: [From Line 16] | E32: 0 | F32: 12000
A33: 26 | B33: Tier 2 (Per 1,000 Gallons) | C33: =C32*2 -> 0.6 | D33: (Line 25 X 2) | E33: =F32+1 -> 12001 | F33: =F32+12000 -> 24000
A34: 27 | B34: Tier 3 (Per 1,000 Gallons) | C34: =C33*2 -> 1.2 | D34: (Line 26 X 2) | E34: =F33+1 -> 24001 | F34: =F33+12000 -> 36000
A35: 28 | B35: Tier 4 (Per 1,000 Gallons) | C35: =C34*1.5 -> 1.8 | D35: (Line 27 X 1.5) | E35: =F34+1 -> 36001 | F35: =F34+12000 -> 48000
A36: 29 | B36: Tier 5 (Per 1,000 Gallons) | C36: =C35*1.5 -> 2.7 | D36: (Line 28 X 1.5) | E36: =F35+1 -> 48001 | F36: Plus
A37: 30 | B37: Irrigation Rate *** | C37: =C32*1.5 -> 0.45 | E37: 40000
B39: * Rounded up to the nearest $0.10
B40: ** Rounded up to the nearest $0.05
B41: *** The irrigation rate is set a 50% increase over the variable expenses of $0.30 per gallon.

Sheet 1.2a Notes
B1: ='1.2 Expense Allocation'!B1 -> Dammeron Valley Water Works, LLC | H1: Exhibit 1.2a
B2: General Rate Case Increase | J2: ='1.2 Expense Allocation'!M2 -> Docket No. 15-2025-01
B3: Rate Schedule (Notes)
B5: Comments:

Sheet 1.2 Expense Allocation
B1: Dammeron Valley Water Works, LLC | L1: Exhibit 1.2
B2: General Rate Case Increase | M2: Docket No. 15-2025-01
B3: Allocation of Expenses
F4: | -------------------------- Fixed Expenses --------------------------| | L4: |---- Variable Expenses -----|
A5: 1 | F5: System Expenses | I5: System Usage Expenses | L5: Water Consumption Expenses
A6: 2 | F6: (Paid by ALL Customers) | I6: (Paid by CONNECTED Only)
A7: 3 | D7: Adjusted Total Expenses | F7: Total Customers: | G7: 473 | I7: Total CONNECTED Customers: | J7: 384 | L7: Projected Usage: | M7: 166136760
A8: 4 | B8: Expense Category | C8: NARUC # | D8: [From Exh 1.3]
A9: 5 | B9: Operation & Maintenance Expenses | F9: 30% | I9: 70% | L9: 100%
A10: 6 | B10: ='1.3 Adj. Expenses'!B10 -> Salaries & Wages - Employees & Officers | C10: 601 | D10: ='1.3 Adj. Expenses'!F10 -> 82714 | F10: =D10*F$9 -> 24814.2 | I10: =D10*I$9 -> 57899.8
A11: 7 | B11: ='1.3 Adj. Expenses'!B11 -> Payroll Taxes | C11: 603 | D11: ='1.3 Adj. Expenses'!F11 -> 6931 | F11: =D11*F$9 -> 2079.3 | I11: =D11*I$9 -> 4851.7
A12: 8 | B12: ='1.3 Adj. Expenses'!B12 -> Purchased Power for Pumps (Electricity) | C12: 604 | D12: ='1.3 Adj. Expenses'!F12 -> 25425 | L12: =D12*L$9 -> 25425
A13: 9 | B13: ='1.3 Adj. Expenses'!B13 -> Purchased Power for Storage Barn (Electricity) | D13: ='1.3 Adj. Expenses'!F13 -> 1219 | F13: =D13*F$9 -> 365.7 | I13: =D13*I$9 -> 853.3
A14: 10 | B14: ='1.3 Adj. Expenses'!B14 -> Materials and Supplies | C14: 610 | D14: ='1.3 Adj. Expenses'!F14 -> 6421 | L14: =D14*L$9 -> 6421
A15: 11 | B15: ='1.3 Adj. Expenses'!B15 -> Contractual Services - Legal and Professional Fees | C15: 615 | D15: ='1.3 Adj. Expenses'!F15 -> 0 | F15: =D15*F$8 -> 0 | I15: =D15*I$8 -> 0 | L15: =D15*L$9 -> 0
A16: 12 | B16: ='1.3 Adj. Expenses'!B16 -> Contractual Services - Sand Cove Pipeline Design | C16: 618 | D16: ='1.3 Adj. Expenses'!F16 -> 0 | F16: 0 | I16: 0 | L16: =D16*L$9 -> 0
A17: 13 | B17: ='1.3 Adj. Expenses'!B17 -> Contractual Services - Accounting | C17: 620 | D17: ='1.3 Adj. Expenses'!F17 -> 1671 | F17: =D17*F$9 -> 501.3 | I17: =D17*I$9 -> 1169.7
A18: 14 | B18: ='1.3 Adj. Expenses'!B18 -> Contractual Services - Legal | C18: 631 | D18: ='1.3 Adj. Expenses'!F18 -> 500 | F18: =D18*F$9 -> 150 | I18: =D18*I$9 -> 350
A19: 15 | B19: ='1.3 Adj. Expenses'!B19 -> Contractual Services - Testing & Lab Fees | C19: 632 | D19: ='1.3 Adj. Expenses'!F19 -> 364 | F19: =D19*F$9 -> 109.2 | I19: =D19*I$9 -> 254.8
A20: 16 | B20: ='1.3 Adj. Expenses'!B20 -> Water System Repairs & Maintenance | C20: 633 | D20: ='1.3 Adj. Expenses'!F20 -> 0 | F20: 0 | I20: 0 | L20: =D20*L$9 -> 0
A21: 17 | B21: ='1.3 Adj. Expenses'!B21 -> Pumps and Wells | C21: 634 | D21: ='1.3 Adj. Expenses'!F21 -> 11000 | L21: =D21*L$9 -> 11000
A22: 18 | B22: ='1.3 Adj. Expenses'!B22 -> Lines and Meters | C22: 635a | D22: ='1.3 Adj. Expenses'!F22 -> 1607 | L22: =D22*L$9 -> 1607
A23: 19 | B23: ='1.3 Adj. Expenses'!B23 -> SCADA Maintenance Contract | C23: 635b | D23: ='1.3 Adj. Expenses'!F23 -> 2700 | F23: =D23*F$9 -> 810 | I23: =D23*I$9 -> 1890
A24: 20 | B24: ='1.3 Adj. Expenses'!B24 -> SCADA | C24: 636 | D24: ='1.3 Adj. Expenses'!F24 -> 0 | F24: 0 | I24: 0
A25: 21 | B25: ='1.3 Adj. Expenses'!B25 -> Fire Hydrants | C25: 637 | D25: ='1.3 Adj. Expenses'!F25 -> 1500 | F25: =D25*F$9 -> 450 | I25: =D25*I$9 -> 1050
A26: 22 | B26: ='1.3 Adj. Expenses'!B26 -> Interest on Outstanding Loan | D26: ='1.3 Adj. Expenses'!F26 -> 0 | F26: 0 | I26: 0
A27: 23 | B27: ='1.3 Adj. Expenses'!B27 -> Water System Equipment Rental | C27: 639 | D27: ='1.3 Adj. Expenses'!F27 -> 522 | F27: =D27*F$9 -> 156.6 | I27: =D27*I$9 -> 365.4
A28: 24 | B28: ='1.3 Adj. Expenses'!B28 -> Water System Equipment Maintenance | C28: 642 | D28: ='1.3 Adj. Expenses'!F28 -> 130 | F28: =D28*F$9 -> 39 | I28: =D28*I$9 -> 91
A29: 25 | B29: ='1.3 Adj. Expenses'!B29 -> Contractual Services - Billing (Meter Reading) | D29: ='1.3 Adj. Expenses'!F29 -> 0 | F29: =D29*F$8 -> 0 | I29: =D29*I$8 -> 0
A30: 26 | B30: ='1.3 Adj. Expenses'!B30 -> Insurance - General Liability | D30: ='1.3 Adj. Expenses'!F30 -> 3991 | F30: =D30*F$9 -> 1197.3 | I30: =D30*I$9 -> 2793.7
A31: 27 | B31: ='1.3 Adj. Expenses'!B31 -> Regulatory Commission Expense | D31: ='1.3 Adj. Expenses'!F31 -> 700 | F31: =D31*F$9 -> 210 | I31: =D31*I$9 -> 490
A32: 28 | B32: ='1.3 Adj. Expenses'!B32 -> Miscellaneous Expenses | D32: ='1.3 Adj. Expenses'!F32 -> 0 | F32: 0 | I32: 0
A33: 29 | B33: ='1.3 Adj. Expenses'!B33 -> Small Tools | D33: ='1.3 Adj. Expenses'!F33 -> 36 | F33: =D33*F$9 -> 10.8 | I33: =D33*I$9 -> 25.2
A34: 30 | B34: ='1.3 Adj. Expenses'!B34 -> Communications Equipment & Services | D34: ='1.3 Adj. Expenses'!F34 -> 11421 | F34: 3426.3 | I34: 7994.7
A35: 31 | B35: ='1.3 Adj. Expenses'!B35 -> Computer Communications & Services | D35: ='1.3 Adj. Expenses'!F35 -> 3832 | F35: 1149.6 | I35: 2682.4
A36: 32 | B36: ='1.3 Adj. Expenses'!B36 -> Postage | D36: ='1.3 Adj. Expenses'!F36 -> 1200 | F36: 360 | I36: 840
A37: 33 | B37: ='1.3 Adj. Expenses'!B37 -> Dues and Fees (Pitney Bowes) Postage | D37: ='1.3 Adj. Expenses'!F37 -> 2894 | F37: 868.2 | I37: 2025.8
A38: 34 | B38: ='1.3 Adj. Expenses'!B38 -> Office Supplies | D38: ='1.3 Adj. Expenses'!F38 -> 868 | F38: 260.4 | I38: 607.6
A39: 35 | B39: ='1.3 Adj. Expenses'!B39 -> Office Rent | D39: ='1.3 Adj. Expenses'!F39 -> 6242 | F39: 1872.6 | I39: 4369.4
A40: 36 | B40: ='1.3 Adj. Expenses'!B40 -> Bank Fees & Charges | D40: ='1.3 Adj. Expenses'!F40 -> 355 | F40: 106.5 | I40: 248.5
A41: 37 | B41: ='1.3 Adj. Expenses'!B41 -> Storage Barn Rent | D41: ='1.3 Adj. Expenses'!F41 -> 5000 | F41: 1500 | I41: 3500
A42: 38 | B42: ='1.3 Adj. Expenses'!B42 -> Dues | D42: ='1.3 Adj. Expenses'!F42 -> 63 | F42: 18.9 | I42: 44.1
A43: 39 | C43: 657 | D43: ='1.3 Adj. Expenses'!F43 -> 0 | F43: 0 | I43: 0 | L43: =D43*L$8 -> 0
A44: 40 | B44: Total Operation & Maintenance Expenses | D44: =SUM(D10:D43) -> 179306 | F44: =SUM(F10:F43) -> 40455.9 | I44: =SUM(I10:I43) -> 94397.1 | L44: =SUM(L10:L43) -> 44453 | M44: =L44/#REF!*1000 ->  | O44: =F44+I44+L44 -> 179306
A47: 41 | B47: Capital Reserve Account Funding | F47: 100% | I47: 0%
A48: 42 | B48: Annual Depreciation Expense | D48: ='1.5 Reserve'!C7 -> 25049 | F48: =D48 -> 25049
A49: 43 | B49: Total Capital Reserve Account Funding | D49: =Reserve -> 25049 | F49: =D49 -> 25049
A52: 44 | B52: Return on Investment (Profit) | F52: 30% | I52: 70%
A53: 45 | B53: Return on Investment | D53: ='1.3 Adj. Expenses'!F52 -> 22791 | F53: =D53*F52 -> 6837.3 | I53: =D53*I52 -> 15953.7
A54: 46 | B54: Total Return on Investment (Profit) | D54: =D53 -> 22791 | F54: =F53 -> 6837.3 | G54: =CEILING((F54/$G$7/12),0.1) -> 1.3 | I54: =I53 -> 15953.7
A57: 47 | B57: Taxes | F57: 100% | I57: 0%
A58: 48 | B58: Property Tax | C58: 408 | D58: ='1.3 Adj. Expenses'!F55 -> 6101 | F58: =D58 -> 6101
A59: 49 | B59: Projected Federal and State Income Tax | C59: 409 | D59: ='1.3 Adj. Expenses'!F56 -> 0 | F59: 0 | I59: 0
A60: 50 | B60: Total Taxes | D60: =SUM(D58:D59) -> 6101 | F60: =SUM(F58:F59) -> 6101 | G60: =CEILING((F60/$G$7/12),0.05) -> 1.1 | I60: =SUM(I58:I59) -> 0 | J60: =CEILING((I60/$J$7/12),0.05) -> 0
A63: 51 | B63: Total Expenses | D63: =D44+D49+D54+D60 -> 233247 | G63: =F44+F49+F54+F60 -> 78443.2 | J63: =I44+I54 -> 110350.8 | M63: =L44 -> 44453 | O63: =G63+J63+M63 -> 233247
A75: -------------------------------------------------- end ------------------------------------------------------

Sheet 1.2 Notes
B1: ='1.2 Expense Allocation'!B1 -> Dammeron Valley Water Works, LLC | H1: Exhibit 1.2
B2: General Rate Case Increase | J2: ='1.2 Expense Allocation'!M2 -> Docket No. 15-2025-01
B3: Expense Allocation (Notes)
B5: Comments:
A44: -------------------------------------------------- end ------------------------------------------------------

Sheet 1.3 Adj. Expenses
B1: ='1.2 Expense Allocation'!B1 -> Dammeron Valley Water Works, LLC | E1: Exhibit 1.3
B2: ='1.2 Expense Allocation'!B2 -> General Rate Case Increase | F2: ='1.2 Expense Allocation'!M2 -> Docket No. 15-2025-01
B3: Adjustments to Expenses
F5: Adjusted
D6: Requested | F6: Total
D7: Expenses | E7: Division | F7: Expense
B8: Expense Category | C8: NARUC # | D8: [From Exh 1.3a] | E8: Adjustments | F8: [To Exhibit 1.2]
B9: Operation & Maintenance Expenses
A10: 1 | B10: Salaries & Wages - Employees & Officers | C10: 601 & 603 | D10: 82714 | F10: =D10+E10 -> 82714
A11: 2 | B11: Payroll Taxes | C11: 601 & 603 | D11: 6931 | F11: =D11+E11 -> 6931
A12: 3 | B12: Purchased Power for Pumps (Electricity) | C12: 615 | D12: 25425 | F12: =D12+E12 -> 25425
A13: 4 | B13: Purchased Power for Storage Barn (Electricity) | C13: 615 | D13: 1219 | F13: 1219
A14: 5 | B14: Materials and Supplies | C14: 620 | D14: 6421 | F14: 6421
A15: 6 | B15: Contractual Services - Legal and Professional Fees | C15: 631 | D15: 8608 | E15: -8608 | F15: 0
A16: 7 | B16: Contractual Services - Sand Cove Pipeline Design | C16: 631 | D16: 1789 | E16: -1789 | F16: 0
A17: 8 | B17: Contractual Services - Accounting | C17: 632 | D17: 1671 | F17: 1671
A18: 9 | B18: Contractual Services - Legal | C18: 633 | D18: 0 | E18: 500 | F18: 500
A19: 10 | B19: Contractual Services - Testing & Lab Fees | C19: 635 | D19: 364 | F19: 364
A20: 11 | B20: Water System Repairs & Maintenance | C20: 636 & 637 | F20: 0
A21: 12 | B21: Pumps and Wells | D21: 20451 | E21: -9451 | F21: 11000
A22: 13 | B22: Lines and Meters | D22: 1607 | F22: 1607
A23: 14 | B23: SCADA Maintenance Contract | D23: 8140 | E23: -5440 | F23: 2700
A24: 15 | B24: SCADA | D24: 1131 | E24: -1131 | F24: 0
A25: 16 | B25: Fire Hydrants | D25: 8353 | E25: -6853 | F25: 1500
A26: 17 | B26: Interest on Outstanding Loan | C26: 675 | D26: 9558 | E26: -9558 | F26: 0
A27: 18 | B27: Water System Equipment Rental | C27: 642 | D27: 522 | F27: 522
A28: 19 | B28: Water System Equipment Maintenance | C28: 640 | D28: 130 | F28: 130
A29: 20 | B29: Contractual Services - Billing (Meter Reading) | C29: 639 | F29: 0
A30: 21 | B30: Insurance - General Liability | C30: 657 | D30: 3991 | F30: 3991
A31: 22 | B31: Regulatory Commission Expense | C31: 667 | E31: =250000*0.0028 -> 700 | F31: 700
A32: 23 | B32: Miscellaneous Expenses | C32: 675 | F32: 0
A33: 24 | B33: Small Tools | D33: 36 | F33: 36
A34: 25 | B34: Communications Equipment & Services | D34: 11421 | F34: 11421
A35: 26 | B35: Computer Communications & Services | D35: 3832 | F35: 3832
A36: 27 | B36: Postage | D36: 1615 | E36: -415 | F36: 1200
A37: 28 | B37: Dues and Fees (Pitney Bowes) Postage | D37: 2894 | F37: 2894
A38: 29 | B38: Office Supplies | D38: 868 | F38: 868
A39: 30 | B39: Office Rent | D39: 6242 | F39: =D39+E39 -> 6242
A40: 31 | B40: Bank Fees & Charges | D40: 355 | F40: 355
A41: 32 | B41: Storage Barn Rent | D41: 9398 | E41: -4398 | F41: 5000
A42: 33 | B42: Dues | D42: 63 | F42: 63
A43: 34
A44: 35 | B44: Total Operation & Maintenance Expenses | D44: =SUM(D10:D43) -> 225749 | E44: =SUM(E10:E43) -> -46443 | F44: =SUM(F10:F43) -> 179306
B46: Annual Capital Reserve Account Funding [From Exhibit 1.5]
A47: 36 | B47: Annual Capital Reserve Account Funding | C47: 403 | D47: 44535.85 | E47: =F47-D47 -> -19486.85 | F47: =Dep_Exp*-1 -> 25049
A48: 37 | B48: Total Annual Capital Reserve Account Funding | D48: =SUM(D46:D47) -> 44535.85 | E48: -19486.85 | F48: =F47 -> 25049
B50: Return on Investment (Profit) [From Exhibit 1.8]
A51: 38 | B51: Return on Investment | D51: 0 | E51: =F51 -> 22791 | F51: ='1.8 Ret on Inv'!C8 -> 22791
A52: 39 | B52: Total Return on Investment (Profit) | D52: =D51 -> 0 | E52: =E51 -> 22791 | F52: =F51 -> 22791
B54: Taxes
A55: 40 | B55: Property Tax | C55: 408 | D55: 6101 | F55: =D55+E55 -> 6101
A56: 41 | B56: Projected Federal and State Income Tax | C56: 409 | D56: 0 | E56: =-D56 -> 0 | F56: ='1.10 Taxes'!C21 -> 0
A57: 42 | B57: Total Taxes | D57: =SUM(D55:D56) -> 6101 | E57: =SUM(E55:E56) -> 0 | F57: =SUM(F55:F56) -> 6101
A59: 43 | B59: Totals | D59: =D44+D48+D52+D57 -> 276385.85 | E59: =E44+E48+E52+E57 -> -43138.85 | F59: =F44+F48+F52+F57 -> 233247
A68: -------------------------------------------------- end ------------------------------------------------------

Sheet 1.3 Notes
B1: ='1.2 Expense Allocation'!B1 -> Dammeron Valley Water Works, LLC | D1: Exhibit 1.3
B2: ='1.2 Expense Allocation'!B2 -> General Rate Case Increase | E2: ='1.2 Expense Allocation'!M2 -> Docket No. 15-2025-01
B3: Adjustments to Expenses (Notes)

Sheet 1.3a Reqested Expenses
B1: Dammeron Valley Water Works, LLC | O1: Exhibit 1.3a
B2: General Rate Case Increase | O2: ='1.2 Expense Allocation'!M2 -> Docket No. 15-2025-01
B3: Requested Expenses Submitted by Dammeron Water
B4: Prepared by Dammeron Water
E6: NARUC Account Number | G6: 2012 | I6: 2013 | K6: 2014 | M6: 2015 | O6: Projected Expenses | Q6: 2017
B8: Income
C9: 427-100 · Water Sales - Residential | E9: 461 | G9: 117732.24 | I9: 119544.73 | K9: 106698.08 | M9: 149430.9125 | O9: 154127.3126 | Q9: 158917.6407
C10: 428-100 · Water Sales - Irrigation | E10: 465 | G10: 38499 | I10: 41136.25 | K10: 43726.5 | M10: 51420.3125 | O10: 52448.71875 | Q10: 53497.69312
C11: 429-100 · Water Hook-up Fees | E11: 474 | G11: 7500 | I11: 15000 | K11: 12000 | M11: 9000 | O11: 30000 | Q11: 30000
C12: 430-100 · Standby Water Fees | E12: 460 | G12: 21300.66 | I12: 20610.98 | K12: 20220.99 | M12: 25763.725 | O12: 26278.9995 | Q12: 26804.57949
C13: 430-500 · Conservation Tariff | E13: 461 | G13: 3036 | I13: 3024 | K13: 3096 | M13: 4410 | O13: 8278.2 | Q13: 12223.764
C14: 431-100 · Water Administration Fees | E14: 474 | G14: 950.75 | I14: 1205 | K14: 1000 | M14: 1051.916667 | O14: 1010.25 | Q14: 1010.25
C15: 445-000 · Late Fees | E15: 474 | G15: 3966.6 | I15: 4602.29 | K15: 4318.91 | M15: 4295.933333 | O15: 4069.456667 | Q15: 4069.456667
C16: 445-100 · NSF Fees | E16: 474 | G16: 25 | I16: 0 | K16: 25 | M16: 16.66666667 | O16: 16.66666667 | Q16: 16.66666667
B17: Total Income | G17: 193010.25 | I17: 205123.25 | K17: 191085.48 | M17: 245389.4667 | O17: 276229.6042 | Q17: 286540.0507
G18: 193010.25 | I18: 205123.25 | K18: 191085.48 | M18: 245389.4667 | O18: 276229.6042 | Q18: 286540.0507
B19: Expense
C20: 615-100 · Bank Charges - WW | E20: 675 | G20: 205.5 | I20: 196.6 | K20: 341.1 | M20: 347.922 | O20: 354.88044 | Q20: 361.9780488
C21: 617-100 · Contract Maintenance | E21: 675 | G21: 2301.75 | I21: 1911.5 | K21: 7824 | M21: 7980.48 | O21: 8140.0896 | Q21: 8302.891392
C22: 629-100 · Depreciation Expense - WW | E22: 403 | G22: 53045.2 | I22: 46395.34 | K22: 42806.47 | M22: 43662.5994 | O22: 44535.85139 | Q22: 45426.56842
C23: 635-100 · Equipment Rentals - WW | E23: 642 | G23: 413.99 | I23: 201.27 | K23: 501.35 | M23: 511.377 | O23: 521.60454 | Q23: 532.0366308
C24: 636-100 · Equipment Maintenance | E24: 675 | G24: 44.3 | I24: 1488.15 | K24: 125.38 | M24: 127.8876 | O24: 130.445352 | Q24: 133.054259
C25: 639-100 · Insurance - WW | E25: 659 | G25: 2802.07 | I25: 3053.06 | K25: 3835.86 | M25: 3912.5772 | O25: 3990.828744 | Q25: 4070.645319
C26: 641-100 · Interest Expense - WW | E26: 427 | G26: 11713.84 | I26: 9218.52 | K26: 9187.23 | M26: 9370.9746 | O26: 9558.394092 | Q26: 9749.561974
C27: 645-000 · Accounting Fees - WW | E27: 632 | G27: 3612.93 | I27: 2361.38 | K27: 1606.09 | M27: 1638.2118 | O27: 1670.976036 | Q27: 1704.395557
C28: 645-100 · Legal & Professional Fees - WW | E28: 633 | G28: 216 | I28: 263.5 | K28: 8273.75 | M28: 8439.225 | O28: 8608.0095 | Q28: 8780.16969
C29: 646-000 · Dues & Fees | E29: 675 | G29: 2611.98 | I29: 3721.41 | K29: 2781.44 | M29: 2837.0688 | O29: 2893.810176 | Q29: 2951.68638
C30: 651-100 · Miscellaneous - WW | E30: 675 | G30: 0 | I30: 0 | K30: -120 | M30: -122.4 | O30: -124.848 | Q30: -127.34496
C31: 655-000 · Personal Property Tax | E31: 408 | G31: 0 | I31: 0 | K31: 5863.85 | M31: 5981.127 | O31: 6100.74954 | Q31: 6222.764531
C32: 656-100 · Salaries & Wages | E32: 601 / 603 | G32: 77180 | I32: 109600 | K32: 79502.86 | M32: 81092.9172 | O32: 82714.77554 | Q32: 84369.07105
C33: 656-200 · Payroll taxes | E33: 408 | G33: 7291.06 | I33: 9046.6 | K33: 6662.1 | M33: 6795.342 | O33: 6931.24884 | Q33: 7069.873817
C34: 661-100 · Office Supplies - WW | M34: 0 | O34: 0 | Q34: 0
D35: 661-101 · Postage | E35: 675 | G35: 1187.58 | I35: 1578.49 | K35: 1552.44 | M35: 1583.4888 | O35: 1615.158576 | Q35: 1647.461748
D36: 661-100 · Office Supplies - WW - Other | E36: 675 | G36: 1344.39 | I36: 1662.35 | K36: 834.59 | M36: 851.2818 | O36: 868.307436 | Q36: 885.6735847
C37: 661-100 · Office Supplies - WW | E37: 675 | G37: 2531.97 | I37: 3240.84 | K37: 2387.03 | M37: 2434.7706 | O37: 2483.466012 | Q37: 2533.135332
C38: 663-100 · Office Rent - WW | E38: 641 | G38: 6000 | I38: 6000 | K38: 6000 | M38: 6120 | O38: 6242.4 | Q38: 6367.248
C39: 664-100 · Barn Expense | E39: 675 | G39: 210.43 | I39: 0 | K39: 9033.16 | M39: 9213.8232 | O39: 9398.099664 | Q39: 9586.061657
C40: 665-000 · Small Tools | E40: 675 | G40: 0 | I40: 0 | K40: 34.78 | M40: 35.4756 | O40: 36.185112 | Q40: 36.90881424
C41: 666-100 · Repairs & Maint - pumps & wells | E41: 675 | G41: 1180 | I41: 4973.83 | K41: 19656.72 | M41: 20049.8544 | O41: 20450.85149 | Q41: 20859.86852
C42: 667-100 · Repairs & Maint - Lines & Meter | E42: 675 | G42: 5402.72 | I42: 1324.74 | K42: 1544.82 | M42: 1575.7164 | O42: 1607.230728 | Q42: 1639.375343
C43: 667-130 · Repairs & Upgrades on SCADA | E43: 675 | G43: 5899.54 | I43: 7466.01 | K43: 1086.74 | M43: 1108.4748 | O43: 1130.644296 | Q43: 1153.257182
C44: 667-150 · Repairs & Maint - Fire Hydrants | E44: 675 | G44: 0 | I44: 0 | K44: 8029 | M44: 8189.58 | O44: 8353.3716 | Q44: 8520.439032
C45: 667-160 · Sand Cove Pipeline Design | E45: 631 | G45: 0 | I45: 0 | K45: 1719.5 | M45: 1753.89 | O45: 1788.9678 | Q45: 1824.747156
C46: 671-100 · Supplies - WW | E46: 620 | G46: 343.99 | I46: 2251.93 | K46: 6171.78 | M46: 6295.2156 | O46: 6421.119912 | Q46: 6549.54231
C47: 675-100 · Taxes - WW | E47: 408 | G47: 7132.55 | I47: 6582.09 | K47: 0 | M47: 0 | O47: 0 | Q47: 0
C48: 680-100 · Telephone - WW | M48: 0 | O48: 0 | Q48: 0
D49: 680-101 · Cell Phone | G49: 7917.94 | I49: 8412.11 | K49: 10977.69 | M49: 11197.2438 | O49: 11421.18868 | Q49: 11649.61245
D50: 680-100 · Telephone - WW - Other | G50: 2859.7 | I50: 3147.57 | K50: 3683.25 | M50: 3756.915 | O50: 3832.0533 | Q50: 3908.694366
C51: 680-100 · Telephone - WW | E51: 675 | G51: 10777.64 | I51: 11559.68 | K51: 14660.94 | M51: 14954.1588 | O51: 15253.24198 | Q51: 15558.30682
C52: 683-100 · Travel - WW | E52: 650 | G52: 150 | I52: 397.83 | K52: 0 | M52: 0 | O52: 0 | Q52: 0
C53: 685-100 · Utilities - WW Pumps | E53: 610 | G53: 17973.75 | I53: 20909.61 | K53: 24437.54 | M53: 24926.2908 | O53: 25424.81662 | Q53: 25933.31295
C54: 685-150 · Other Utilities | E54: 610 | G54: 1181.8 | I54: 1171.99 | K54: 1170.98 | M54: 1194.3996 | O54: 1218.287592 | Q54: 1242.653344
C55: 687-100 · Water Testing | E55: 635a | G55: 833 | I55: 183 | K55: 350 | M55: 357 | O55: 364.14 | Q55: 371.4228
C56: 745-002 · Fees | E56: 675 | G56: 3600 | I56: 0 | K56: 60.52 | M56: 61.7304 | O56: 62.965008 | Q56: 64.22430816
B57: Total Expense | G57: 224656.01 | I57: 253518.88 | K57: 265534.99 | M57: 270845.6898 | O57: =SUM(O20:O33)+SUM(O37:O47)+SUM(O51:O56) -> 276262.6036 | Q57: 281787.8557
G58: -31645.76 | I58: -48395.63 | K58: -74449.51 | M58: -25456.22313 | O58: -32.99941 | Q58: 4752.19499
A59: Net Income | G59: -31645.76 | I59: -48395.63 | K59: -74449.51 | M59: -25456.22313 | O59: -32.99941 | Q59: 4752.19499
I61: Check | K61: 0

Sheet 1.4 Rev & Exp
B1: ='1.2 Expense Allocation'!B1 -> Dammeron Valley Water Works, LLC | F1: Exhibit 1.4
B2: ='1.2 Expense Allocation'!B2 -> General Rate Case Increase | G2: ='1.2 Expense Allocation'!M2 -> Docket No. 15-2025-01
B3: Summary of Revenues and Expenses (Revenue Requirement)
C5: Number of
C6: Customers | E6: Monthly Rate
C7: [From Exh 1.2] | E7: [From Exh 1.2a] | G7: Amount
B8: Revenues
A9: 1 | B9: Connected Customers | C9: ='1.2 Expense Allocation'!J7 -> 384 | E9: ='1.2a Rates'!D16+'1.2a Rates'!D10 -> 37.9 | G9: =C9*E9*12 -> 174643.2
A10: 2 | B10: Standby Customers (473 minus 384) | C10: ='1.2 Expense Allocation'!G7-'1.2 Expense Allocation'!J7 -> 89 | E10: ='1.2a Rates'!D10 -> 13.9 | G10: =C10*E10*12 -> 14845.2
A11: 3 | B11: Total Revenue | G11: =G9+G10 -> 189488.4
A13: 6 | B13: After Taxes
A14: 7 | B14: Connected Customers | F14: 12 | G14: =C14*E14*F14 -> 0
A15: 8 | B15: Standby Customers | F15: 12 | G15: =C15*E15*F15 -> 0
A16: 9 | B16: Total Revenue After Taxes | G16: =G14+G15 -> 0
A17: 10
B18: Expenses
E19: References
A20: 4 | B20: ='1.2 Expense Allocation'!B44 -> Total Operation & Maintenance Expenses | E20: [From Exhibit 1.2] | G20: =OandM_Exp -> 179306
A21: 5 | B21: Less: Variable Expenses | E21: [From Exhibit 1.2] | G21: =-'1.2 Expense Allocation'!M63 -> -44453
A22: 6 | B22: Total Fixed Operation & Maintenance Expenses | G22: =G20+G21 -> 134853
A23: 7 | B23: ='1.2 Expense Allocation'!B60 -> Total Taxes | E23: [From Exhibit 1.2] | G23: ='1.2 Expense Allocation'!D60 -> 6101
A24: 8 | B24: ='1.2 Expense Allocation'!B59 -> Projected Federal and State Income Tax | G24: ='1.2 Expense Allocation'!D59 -> 0
A25: 9 | B25: ='1.2 Expense Allocation'!B49 -> Total Capital Reserve Account Funding | E25: [From Exhibit 1.5] | G25: =Reserve -> 25049
A26: 10 | B26: ='1.2 Expense Allocation'!B54 -> Total Return on Investment (Profit) | E26: [From Exhibit 1.8] | G26: ='1.8 Ret on Inv'!C8 -> 22791
A27: 11 | B27: Total Expenses (Less: Variable Expenses) | G27: =G22+SUM(G23:G26) -> 188794
A29: 12 | B29: Projected Annual Amount Over/(Under) Earned (line 3 - line 11)xx | G29: =G11-G27 -> 694.4
A53: -------------------------------------------------- end ------------------------------------------------------

Sheet 1.5 Reserve
B1: ='1.2 Expense Allocation'!B1 -> Dammeron Valley Water Works, LLC | D1: Exhibit 1.5
B2: ='1.2 Expense Allocation'!B2 -> General Rate Case Increase | D2: ='1.2 Expense Allocation'!M2 -> Docket No. 15-2025-01
B3: Capital Reserves
B5: Description | C5: Amount | D5: References
B6: Annual Capital Reserve Account Funding
A7: 1 | B7: Annual Depreciation Expense | C7: =Dep_Exp*-1 -> 25049 | D7: [From Exhibit 1.6]
A8: 2
A9: 3 | B9: Total Annual Capital Reserve Account Funding | C9: =C7 -> 25049 | D9: [To Exhibit 1.3]
A47: -------------------------------------------------- end ------------------------------------------------------

Sheet 1.6 Deprec
B1: ='1.2 Expense Allocation'!B1 -> Dammeron Valley Water Works, LLC | K1: Exhibit 1.6
B2: ='1.2 Expense Allocation'!B2 -> General Rate Case Increase | K2: ='1.2 Expense Allocation'!M2 -> Docket No. 15-2025-01
B3: Depreciation Expense & Accumulated Depreciation Reconciliation
B5: Depreciation Rates for Water Utilities Per R746-332 | F5: 2014 Plant Accounts
B6: NARUC Acct # | C6: Account Name | D6: Depreciation Rate Applied | E6: Average Service Life (Years) | F6: Beginning Balance | G6: Additions | H6: Balance at end of Year | I6: Accumulated Depreciation | J6: Annual Depreciation as Calculated by Dammeron Water | K6: Correct Annual Depreciation Expense for Year | L6: Accum Depreciation through the end of Year
C7: Depreciable
A8: 1 | B8: 304 | C8: Structures and Improvements | D8: 0.029 | E8: 35 | F8: 1272.88 | H8: =IF(F8+G8=0,0,F8+G8) -> 1272.88 | I8: -1272.88 | J8: 0 | K8: =ROUND(IF((H8+I8)>(H8*$D8),(H8*$D8*-1),((H8+I8))*-1),0) -> 0 | L8: =I8+K8 -> -1272.88
A9: 2 | B9: 305 | C9: Collecting and Impounding Reservoirs | D9: 0.02 | E9: 50 | H9: 0 | J9: 0 | K9: =ROUND(IF((H9+I9)>(H9*$D9),(H9*$D9*-1),((H9+I9))*-1),0) -> 0 | L9: =I9+K9 -> 0
A10: 3 | B10: 306 | C10: Lakes, Rivers, and Other Intakes | D10: 0.029 | E10: 35 | H10: 0 | J10: 0 | K10: 0 | L10: 0
A11: 4 | B11: 307 | C11: Wells and Springs | L11: 0
A12: 5 | C12: Well #3 - DVWW | D12: 0.04 | E12: 25 | F12: 17115 | H12: 17115 | I12: -17115 | J12: 0 | K12: 0 | L12: -17115
A13: 6 | C13: Well #3 Improvements | D13: 0.04 | E13: 25 | F13: 24485 | H13: 24485 | I13: -23332.89 | J13: -816.17 | K13: =ROUND(IF((H13+I13)>(H13*$D13),(H13*$D13*-1),((H13+I13))*-1),0) -> -979 | L13: -24311.89
C14: 2004 New Water Line
A15: 7 | C15: New Water Line and Well 12/31/04 | D15: 0.04 | E15: 25 | F15: 430180.07 | H15: 430180.07 | I15: -130249 | J15: =H15*D15*-1 -> -17207.2028
A16: 8 | C16: New Water Line and Well 12/31/04 | D16: 0.04 | E16: 25 | F16: =F15*-0.5 -> -215090.035 | H16: -215090.035 | I16: 130249 | K16: =(H15+H16)*D16*-1 -> -8603.6014 | L16: =K16+I15 -> -138852.6014
A17: 9 | C17: Water Line & Well #4 03/01/05 | D17: 0.04 | E17: 25 | F17: 10807 | H17: 10807 | I17: -3182.12 | J17: =H17*D17*-1 -> -432.28
A18: 10 | C18: Water Line & Well #4 03/01/05 | D18: 0.04 | E18: 25 | F18: =F17*-0.5 -> -5403.5 | H18: -5403.5 | I18: 3182.12 | K18: =(H17+H18)*D18*-1 -> -216.14 | L18: =K18+I17 -> -3398.26
A19: 11 | C19: Well #4 & Tank - Other | D19: 0.04 | E19: 25 | F19: 7896.44 | H19: 7896.44 | I19: -3992.09 | J19: =H19*D19*-1 -> -315.8576
A20: 12 | C20: Well #4 & Tank - Other | D20: 0.04 | E20: 25 | F20: =F19*-0.5 -> -3948.22 | H20: -3948.22 | I20: 3992.09 | K20: =(H19+H20)*D20*-1 -> -157.9288 | L20: =K20+I19 -> -4150.0188
F21: =SUM(F15:F20) -> 224441.755 | H21: =SUM(H15:H20) -> 224441.755 | I21: =SUM(I15:I20) -> 0 | J21: =SUM(J15:J20) -> -17955.3404 | K21: =SUM(K15:K20) -> -8977.6702 | L21: =SUM(L15:L20) -> -146400.8802
A23: 13 | C23: Well #3 SCADA Improvements | D23: 0.04 | E23: 25 | F23: 23566.19 | H23: =IF(F23+G23=0,0,F23+G23) -> 23566.19 | I23: -5106.01 | J23: -785.54 | K23: =ROUND(IF((H23+I23)>(H23*$D23),(H23*$D23*-1),((H23+I23))*-1),0) -> -943 | L23: -6049.01
A24: 14 | C24: Water Lines Homestead East Com | D24: 0.04 | E24: 25 | F24: 6412.65 | H24: 6412.65 | I24: -961.92 | J24: -213.76 | K24: =ROUND(IF((H24+I24)>(H24*$D24),(H24*$D24*-1),((H24+I24))*-1),0) -> -257 | L24: -1218.92
A25: 15 | C25: Total Wells and Springs | F25: =F12+F13+F21+F23+F24 -> 296020.595 | G25: =SUM(G12:G20) -> 0 | H25: =H12+H13+H21+H23+H24 -> 296020.595 | I25: =I12+I13+I21+I23+I24 -> -46515.82 | J25: =J12+J13+J21+J23+J24 -> -19770.8104 | K25: =K12+K13+K21+K23+K24 -> -11156.6702 | L25: =L12+L13+L21+L23+L24 -> -195095.7002
A26: 16 | B26: 308 | C26: Infiltration Galleries and Tunnels | D26: 0.04 | E26: 25 | H26: 0 | K26: =ROUND(IF((H26+I26)>(H26*$D26),(H26*$D26*-1),((H26+I26))*-1),0) -> 0 | L26: 0
A27: 17 | B27: 309 | C27: Supply Mains | D27: 0.02 | E27: 50 | H27: 0 | K27: 0 | L27: 0
A28: 18 | B28: 310 | C28: Power Generation Equipment | D28: 0.09 | E28: 10 | H28: 0 | K28: 0 | L28: 0
A29: 19 | B29: 311 | C29: Pumping Equipment | D29: 0.05 | E29: 20 | K29: 0 | L29: 0
A30: 20 | C30: Pumps and Pump houses | D30: 0.05 | E30: 20 | F30: 15170.84 | H30: 15170.84 | I30: -15170.84 | J30: 0 | K30: 0 | L30: -15170.84
A31: 21 | C31: Pumps and Pump houses | D31: 0.05 | E31: 20 | F31: 11970 | H31: 11970 | I31: -11970 | J31: 0 | K31: 0 | L31: -11970
A32: 22 | C32: New Pump #3 | D32: 0.05 | E32: 20 | F32: 7124.14 | H32: 7124.14 | I32: -7124.14 | J32: 0 | K32: 0 | L32: -7124.14
A33: 23 | C33: Flow Meters on Pumps | D33: 0.05 | E33: 20 | F33: 3628.5 | H33: 3628.5 | I33: -3628.5 | J33: 0 | K33: 0 | L33: -3628.5
A34: 24 | C34: Sort Start Generator Box | D34: 0.05 | E34: 20 | F34: 3518.46 | H34: 3518.46 | I34: -3518.46 | J34: 0 | K34: 0 | L34: -3518.46
A35: 25 | C35: Concrete around Valves and Bowels | D35: 0.05 | E35: 20 | F35: 2605 | H35: 2605 | I35: -824.93 | J35: -173.67 | K35: -130 | L35: -954.93
A36: 26 | C36: New Motor and Bowls | D36: 0.05 | E36: 20 | F36: 7870 | H36: 7870 | I36: -2361.01 | J36: -524.67 | K36: -394 | L36: -2755.01
A37: 27 | C37: Total Pumping Equipment | F37: =SUM(F30:F36) -> 51886.94 | G37: =SUM(G30:G36) -> 0 | H37: 51886.94 | I37: -44597.88 | J37: -698.34 | K37: -524 | L37: -45121.88
A38: 28 | B38: 320 | C38: Water Treatment Equipment | D38: 0.05 | E38: 20 | H38: 0 | K38: 0 | L38: 0
A39: 29 | B39: 330 | C39: Distribution Reservoirs & Standpipes | D39: 0.033 | E39: 30 | H39: 0 | K39: 0 | L39: 0
A40: 30 | C40: Water Tanks 2 | D40: 0.033 | E40: 30 | F40: 187751.75 | H40: 187751.75 | I40: -92371.34 | J40: -4693.79 | K40: -6196 | L40: -98567.34
A41: 31 | C41: 1995 Water Tanks | D41: 0.033 | E41: 30 | F41: 30111.06 | H41: 30111.06 | I41: -15808.32 | J41: -752.78 | K41: -994 | L41: -16802.32
A42: 32 | C42: Total Distribution Reservoirs & Standpipes | F42: =SUM(F40:F41) -> 217862.81 | G42: =SUM(G40:G41) -> 0 | H42: 217862.81 | I42: -108179.66 | J42: -5446.57 | K42: -7190 | L42: -115369.66
A43: 33 | B43: 331 | C43: Transmission and Distribution Mains | L43: 0
A44: 34 | C44: Westside Transmission Line 2012 | D44: 0.02 | E44: 50 | F44: =288289.21 -> 288289.21 | H44: 288289.21 | I44: -22422.49 | J44: -9609.64
A45: 35 | C45: Westside Transmission Line 2012 | D45: 0.02 | E45: 50 | F45: =-288289.21 -> -288289.21 | H45: =IF(F45+G45=0,0,F45+G45) -> -288289.21 | I45: 22422.49
A46: 36 | C46: Transmission Lines DVWW | D46: 0.02 | E46: 50 | F46: 93196.25 | H46: 93196.25 | I46: -66996.39 | J46: -3106.54 | K46: =ROUND(IF((H46+I46)>(H46*$D46),(H46*$D46*-1),((H46+I46))*-1),0) -> -1864 | L46: -68860.39
A47: 37 | C47: Transmission Lines | D47: 0.02 | E47: 50 | F47: 62368.98 | H47: 62368.98 | I47: -43658.35 | J47: -2078.97 | K47: -1247 | L47: -44905.35
A48: 38 | C48: Transmission Lines | D48: 0.02 | E48: 50 | F48: 29192 | H48: 29192 | I48: -29192 | J48: 0 | K48: 0 | L48: -29192
A49: 39 | C49: Total Transmission & Distribution Mains | F49: =SUM(F44:F48) -> 184757.23 | G49: =SUM(G44:G48) -> 0 | H49: 184757.23 | I49: -139846.74 | J49: -14795.15 | K49: -3111 | L49: -142957.74
A50: 40 | B50: 333 | C50: Services | D50: 0.033 | E50: 30 | H50: 0 | K50: =ROUND(IF((H50+I50)>(H50*$D50),(H50*$D50*-1),((H50+I50))*-1),0) -> 0 | L50: 0
A51: 41 | B51: 334 | C51: Meters and Meter Installations | D51: 0.026 | E51: 35 | H51: 0 | K51: 0 | L51: 0
A52: 42 | B52: 335 | C52: Hydrants | D52: 0.024 | E52: 40 | H52: 0 | K52: 0 | L52: 0
A53: 43 | B53: 336 | C53: Backflow Prevention Devices | D53: 0.026 | E53: 35 | H53: 0 | K53: 0 | L53: 0
A54: 44 | B54: 339 | C54: Other Plant & Misc. Equipment | D54: 0.09 | E54: 10 | H54: 0 | K54: 0 | L54: 0
A55: 45 | B55: 340 | C55: Office Furniture and Equipment | D55: 0.048 | E55: 20 | F55: 3922.53 | H55: 3922.53 | I55: -3152.54 | J55: -224.16 | K55: -188 | L55: -3340.54
A56: 46 | B56: 341 | C56: Transportation Equipment | D56: 0.129 | E56: 7 | H56: 0 | K56: 0 | L56: 0
A57: 47 | B57: 342 | C57: Stores Equipment | D57: 0.05 | E57: 20 | H57: 0 | K57: 0 | L57: 0
A58: 48 | B58: 343 | C58: Tools, Shop and Garage Equipment | D58: 0.063 | E58: 15 | H58: 0 | K58: 0 | L58: 0
A59: 49 | C59: Husky Generator | D59: 0.063 | E59: 15 | F59: 480.14 | H59: 480.14 | I59: -312.1 | J59: -96.03 | K59: -30 | L59: -342.1
A60: 50 | C60: Hard Wire Generator | D60: 0.063 | E60: 15 | F60: 2512 | H60: 2512 | I60: -1716.53 | J60: -502.4 | K60: -158 | L60: -1874.53
A61: 51 | C61: 100hp Motor | D61: 0.063 | E61: 15 | F61: 15012.72 | H61: 15012.72 | I61: -10258.68 | J61: -3002.54 | K61: -946 | L61: -11204.68
A62: 52 | C62: Well Equipment | D62: 0.063 | E62: 15 | F62: 4240 | H62: 4240 | I62: -2826.67 | J62: -848 | K62: -267 | L62: -3093.67
A63: 53 | C63: Rat Proof Generator | D63: 0.063 | E63: 15 | F63: 759 | H63: 759 | I63: -493.35 | J63: -151.8 | K63: -48 | L63: -541.35
A64: 54 | C64: Total Tools, Shop and Garage Equipment | F64: =SUM(F59:F63) -> 23003.86 | G64: =SUM(G59:G63) -> 0 | H64: 23003.86 | I64: -15607.33 | J64: -4600.77 | K64: -1449 | L64: -17056.33
A65: 55 | B65: 344 | C65: Laboratory Equipment | D65: 0.067 | E65: 15 | H65: 0 | I65: 0 | K65: 0 | L65: 0
A66: 56 | B66: 345 | C66: Power Operated Equipment | D66: 0.09 | E66: 10 | F66: 15000 | H66: 15000 | I66: -15000 | J66: 0 | K66: 0 | L66: -15000
A67: 57 | B67: 346 | C67: Communication Equipment | L67: 0
A68: 58 | C68: Telementry System 5/12/01 | D68: 0.09 | E68: 10 | F68: 15890.36 | H68: 15890.36 | I68: -10215.23 | J68: 0 | K68: -1430 | L68: -11645.23
A69: 59 | C69: SCADA Telementry System 6/11/05 | D69: 0.09 | E69: 10 | F69: 31428.09 | H69: 31428.09 | I69: -31428.09 | J69: 0 | K69: 0 | L69: -31428.09
A70: 60 | C70: SCADA Tech Equipment | D70: 0.09 | E70: 10 | F70: 10242.68 | H70: 10242.68 | I70: -10242.68 | J70: 0 | K70: 0 | L70: -10242.68
A71: 61 | C71: Software | D71: 0.09 | E71: 10 | F71: 2000 | H71: 2000 | I71: -2000 | J71: 0 | K71: 0 | L71: -2000
A72: 62 | C72: E&M Software | D72: 0.09 | E72: 10 | F72: 14800 | H72: 14800 | I72: -14800 | J72: 0 | K72: 0 | L72: -14800
A73: 63 | C73: Total Communication Equipment | F73: =SUM(F68:F72) -> 74361.13 | G73: 0 | H73: 74361.13 | I73: -68686 | J73: 0 | K73: -1430 | L73: -70116
A74: 64 | B74: 347 | C74: Miscellaneous Equipment | D74: 0.09 | E74: 10 | L74: 0
A75: 65 | B75: 348 | C75: Other Tangible Plant | D75: 0.09 | E75: 10 | H75: 0 | K75: 0 | L75: 0
A76: 70 | D76: Total | F76: =SUM(F8:F10)+F25+SUM(F26:F28)+F37+F38+F42+F49+SUM(F50:F57)+F64+SUM(F65:F66)+F73+SUM(F74:F75) -> 868087.975 | G76: 0 | H76: 868087.975 | I76: -442858.85 | J76: -45535.8004 | K76: =ROUND(SUM(K8:K10)+K25+SUM(K26:K28)+K37+K38+K42+K49+SUM(K50:K57)+K64+SUM(K65:K66)+K73+SUM(K74:K75),0) -> -25049 | L76: -605330.7302
E77: Tot Adj. | F77: =F16+F18+F20+F45 -> -512730.965 | H77: [To Exh 1.7] | K77: [To Exh 1.5] | L77: [To Exh 1.7]
C91: -------------------------------------------------- end ------------------------------------------------------

Sheet 1.6 Deprec Notes
B1: ='1.2 Expense Allocation'!B1 -> Dammeron Valley Water Works, LLC | E1: Exhibit 1.6
B2: ='1.3 Adj. Expenses'!B2 -> General Rate Case Increase | E2: Docket No. 15-2025-01
B3: Depreciation Expense & Accumulated Depreciation Reconciliation (Notes)

Sheet 1.7 Rate Base
B1: ='1.2 Expense Allocation'!B1 -> Dammeron Valley Water Works, LLC | F1: Exhibit 1.7
B2: ='1.2 Expense Allocation'!B2 -> General Rate Case Increase | F2: ='1.2 Expense Allocation'!M2 -> Docket No. 15-2025-01
B3: Rate Base
E5: Division
C6: Requested in | E6: Proposed
B7: Description | C7: Rate Case | D7: Adjustments | E7: Rate base | F7: Reference
A8: 1 | B8: Rate base Summary
A9: 2 | B9: Utility Plant in Service | E9: =E22 -> 262757.2448 | F9: (From Line 8)
A10: 3 | B10: Working Capital | E10: =E35 -> 22127.17808 | F10: (From Line 14)
A11: 4 | B11: Total Rate base [Line 2 + Line 3] | E11: =E9+E10 -> 284884.4229 | F11: [To Exhibit 1.8]
A14: 5 | B14: Utility Plant in Service (Investment Included in Rate base)
A15: 6 | B15: Utility Plant In Service | C15: ='1.6 Deprec'!F76-'1.6 Deprec'!F77 -> 1380818.94 | D15: =E15-C15 -> -512730.965 | E15: =Tot_Assets -> 868087.975 | F15: [From Exhibit 1.6]
A16: 7 | B16: Accumulated Depreciation | E16: =Accum_Dep -> -605330.7302 | F16: [From Exhibit 1.6]
A17: 8 | B17: Net Utility Plant In Service | E17: =SUM(E15:E16) -> 262757.2448
A18: 9
A19: 11 | B19: Contributions In Aid of Construction | C19: 0 | D19: =E19-C19 -> 0
A20: 12 | B20: Accum. Amor. CIAC | C20: 0 | D20: =E20-C20 -> 0
A21: 13 | B21: Net Contributions In Aid of Construction | C21: =SUM(C19:C20) -> 0 | D21: 0
A22: 14 | B22: Net Utility Plant in Service (Investment Included in Rate Base) | E22: =E17+E21 -> 262757.2448
A25: 9 | B25: Working Capital
A26: 10 | B26: Customer Deposits | C26: 0 | D26: 0 | E26: 0
A28: 9 | B28: Cash Working Capital (To allow for 45 days of cash on hand)
A29: 10 | B29: Cash on Hand [From Exh D-3 of Application] | D29: =E29-C29 -> 170 | E29: 170
A30: 11 | B30: Total Operations & Maintenance Expense | C30: ='1.3 Adj. Expenses'!D44 -> 225749 | D30: =E30-C30 -> -46443 | E30: =OandM_Exp -> 179306 | F30: [From Exhibit 1.3]
A31: 12 | B31: Less: Purchased Water
A32: 13 | B32: Adjusted Total Operations & Maintenance Exp. | C32: =SUM(C29:C31) -> 225749 | D32: -46273 | E32: =SUM(E29:E31) -> 179476
A33: 14 | B33: Cash Working Capitol (line 13 X (45/365)) | E33: =E32*45/365 -> 22127.17808
A35: 15 | B35: Net Working Capital | C35: =SUM(C28:C28) -> 0 | D35: =SUM(D26:D28) -> 0 | E35: =E26+E33 -> 22127.17808 | F35: [Lines 14 + 16 + 22]
A47: -------------------------------------------------- end ------------------------------------------------------

Sheet 1.8 Ret on Inv
B1: ='1.2 Expense Allocation'!B1 -> Dammeron Valley Water Works, LLC | F1: Exhibit 1.8
B2: ='1.2 Expense Allocation'!B2 -> General Rate Case Increase | F2: ='1.2 Expense Allocation'!M2 -> Docket No. 15-2025-01
B3: Return on Investment
B5: Description | C5: Amount | F5: Reference
A6: 1 | B6: Rate Base | C6: ='1.7 Rate Base'!E11 -> 284884.4229 | D6: [From Exhibit 1.7]
A7: 2 | B7: Rate of Return on Investment | C7: 0.08
A8: 3 | B8: Return On Investment [line 1 X line 2] | C8: =ROUND(C6*C7,0) -> 22791
B18: -------------------------------------------------- end ------------------------------------------------------
B27: Not Applicable in this case IGNORE
A28: (a) | B28: Return Calculation
B29: Description | C29: Amount | D29: Percentage | F29: Allowed Rate of Return | G29: Return Amount
A30: 9 | B30: Common Equity | C30: 0 | D30: =ROUND(C30/C33,4) -> 0 | F30: 0.12 | G30: =ROUND(F30*D30,4) -> 0
A31: 10 | B31: Misc. current & accrued liabilities | C31: 0 | D31: =ROUND(C31/$C$33,4) -> 0 | F31: 0.06 | G31: =ROUND(F31*D31,4) -> 0
A32: 11 | B32: Net CIAC | C32: 1e-05 | D32: =ROUND(C32/$C$33,4) -> 1 | F32: 0.12 | G32: =ROUND(F32*D32,4) -> 0.12
A33: 12 | B33: Totals | C33: =SUM(C30:C32) -> 1e-05 | D33: =SUM(D30:D32) -> 1 | G33: =SUM(G30:G32) -> 0.12

Sheet 1.10 Taxes (hidden)
B1: ='1.2 Expense Allocation'!B1 -> Dammeron Valley Water Works, LLC | D1: Exhibit 1.10
B2: ='1.2 Expense Allocation'!B2 -> General Rate Case Increase | E2: =#REF! -> 
B3: Projected Federal & State Income Taxes
B5: Description | C5: Amount | D5: Reference
B6: Tax Calculation
A7: 1 | B7: Federal Income Tax Rate Used in Calculation | C7: 0.15
A8: 2 | B8: State Income Tax Rate Used in Calculation | C8: 0.05
A9: 3 | B9: Total Tax Rate Used [Line 1 + Line 2] | C9: =C7+C8 -> 0.2
A10: 4
A11: 5 | B11: Tax gross-up factor [line 3 ÷ (1 - line 3)] | C11: =C9/(1-C9) -> 0.25
A12: 6
A13: 7 | B13: Projected Total Revenue Before Taxes | C13: ='1.4 Rev & Exp'!G11 -> 189488.4 | D13: [From Exhibit 1.4]
A14: 8 | B14: Projected Operation & Maintenance Expenses | C14: =-'1.4 Rev & Exp'!G20 -> -179306 | D14: [From Exhibit 1.3]
A15: 9 | B15: Projected Depreciation Expense | C15: =Dep_Exp -> -25049 | D15: [From Exhibit 1.6]
A16: 10 | B16: Projected Net Taxable Income | C16: =SUM(C13:C15) -> -14866.6
A17: 11
A18: 12
A19: 13 | B19: Estimated Federal and State Income Tax Obligation [line 5 X line 10] | C19: =C16*C11 -> -3716.65
A21: 14 | B21: Company is Non-Profit and owes no Income Taxes | C21: 0 | D21: [To Exhibit 1.3]
A32: -------------------------------------------------- end ------------------------------------------------------

Sheet Macro
B7: System | C7: ='1.2a Rates'!D10 -> 13.9
B8: User | C8: ='1.2a Rates'!D10+'1.2a Rates'!D16 -> 37.9
B9: Variable | C9: ='1.2a Rates'!D22 -> 0.3
